fUST/lending_fUST_20250107
["ID","MTS","AMOUNT","RATE_DAILY","PERIOD"]
[347947835,1736235038163,-500.0,0.00018219,2]
[347947836,1736235038174,-500.0,0.00018219,2]
[347947837,1736235038184,-500.0,0.00018219,2]
[347947838,1736235038196,-500.0,0.00018219,2]
[347947839,1736235038206,-500.0,0.00018219,2]
[347947840,1736235038214,-500.0,0.00018219,2]
[347947841,1736235038225,-500.0,0.00018219,2]
[347947842,1736235038235,-500.0,0.00018219,2]
[347947843,1736235038243,-500.0,0.00018219,2]
[347947844,1736235038252,-178.27970663,0.00018219,2]
[347947845,1736235038261,-500.0,0.00018219,2]
[347947846,1736235038270,-500.0,0.00018219,2]
[347947847,1736235038279,-500.0,0.00018219,2]
[347947848,1736235038288,-500.0,0.00018219,2]
[347947849,1736235038297,-500.0,0.00018219,2]
[347947850,1736235038306,-500.0,0.00018219,2]
[347947851,1736235038315,-500.0,0.00018219,2]
[347947852,1736235038324,-500.0,0.00018219,2]
[347947853,1736235038333,-500.0,0.00018219,2]
[347947854,1736235038343,-500.0,0.00018219,2]
[347947855,1736235038352,-500.0,0.00018219,2]
[347947856,1736235038360,-500.0,0.00018219,2]
[347947857,1736235038370,-500.0,0.00018219,2]
[347947858,1736235038379,-500.0,0.00018219,2]
[347947859,1736235038388,-500.0,0.00018219,2]
[347947861,1736235038397,-500.0,0.00018219,2]
[347947862,1736235038406,-500.0,0.00018219,2]
[347947863,1736235038415,-402.88938757,0.00018219,2]
[347947864,1736235038427,-97.11061243,0.00018219,2]
[347947865,1736235038438,-500.0,0.00018219,2]
[347947866,1736235038448,-500.0,0.00018219,2]
[347947867,1736235038458,-500.0,0.00018219,2]
[347947868,1736235038467,-500.0,0.00018219,2]
[347947869,1736235038476,-500.0,0.00018219,2]
[347947870,1736235038486,-500.0,0.00018219,2]
[347947871,1736235038497,-500.0,0.00018219,2]
[347947872,1736235038506,-500.0,0.00018219,2]
[347947873,1736235038516,-500.0,0.00018219,2]
[347947874,1736235038526,-500.0,0.00018219,2]
[347947875,1736235038535,-500.0,0.00018219,2]
[347947876,1736235038544,-500.0,0.00018219,2]
[347947877,1736235038554,-500.0,0.00018219,2]
[347947878,1736235038563,-500.0,0.00018219,2]
[347947879,1736235038573,-500.0,0.00018219,2]
[347947880,1736235038582,-771.72,0.0001822,2]
[347947881,1736235038591,-926.66227224,0.0001823,2]
[347947882,1736235038604,-10280.24523656,0.0001823,2]
[347947883,1736235038614,-3221.27142129,0.00018314,2]
[347947884,1736235038624,-11206.9075088,0.00018372,2]
[347947885,1736235038633,-352.9591083,0.00018438,2]
[347947886,1736235038643,-352.9591083,0.00018438,2]
[347947887,1736235038653,-352.9591083,0.00018438,2]
[347947888,1736235038662,-834.3466655,0.00018441,2]
[347947889,1736235038672,-352.9591083,0.00018441,2]
[347947890,1736235038683,-674.3742141,0.000185,5]
[347947891,1736235038692,-3221.27142129,0.00018521,2]
[347947892,1736235038702,-524.05954572,0.00018521,2]
[347947893,1736235038712,-420.0,0.00018567,2]
[347947894,1736235038721,-352.9020598,0.000186,2]
[347947895,1736235038731,-4811.11491562,0.0001869,2]
[347947901,1736235040113,-618.71675895,0.0001869,2]
[347947908,1736235043072,-348.89256572,0.0001869,2]
[347947909,1736235043084,-5428.18326851,0.0001869,2]
[347947910,1736235043094,-253.83063042,0.0001872,2]
[347947911,1736235043104,-3221.27142129,0.00018728,2]
[347947912,1736235043114,-174.16981734,0.0001873,2]
[347947913,1736235043122,-693.86066932,0.00018829,2]
[347947914,1736235043131,-154.04,0.000189,2]
[347947915,1736235043140,-1218.01005602,0.000189,2]
[347947916,1736235043150,-11206.9075092,0.00018919,2]
[347947918,1736235043159,-3221.27142129,0.00018934,2]
[347947920,1736235043169,-500.0,0.00018985,2]
[347947922,1736235043178,-238.45031093,0.00018985,2]
[347947923,1736235043187,-222.91675567,0.00018985,2]
[347947924,1736235043196,-500.0,0.00018985,2]
[347947925,1736235043205,-405.34337681,0.00018985,2]
[347947926,1736235043215,-473.122123,0.00018986,2]
[347947927,1736235043225,-260.0,0.0001899,2]
[347947928,1736235043234,-302.90913937,0.00019,2]
[347947929,1736235043244,-564.6688908,0.00019,2]
[347947930,1736235043253,-753.8885326,0.00019,3]
[347947931,1736235043262,-152.0,0.00019002,2]
[347947932,1736235043271,-811.525,0.00019061,2]
[347947933,1736235043280,-500.0,0.00019073,2]
[347947934,1736235043290,-500.0,0.00019073,2]
[347947935,1736235043300,-500.0,0.00019073,2]
[347947936,1736235043309,-500.0,0.00019078,2]
[347947937,1736235043318,-466.89265056,0.00019078,2]
[347947938,1736235043329,-4852.96103732,0.000191,2]
[347947939,1736235043338,-47443.51597015,0.000191,2]
[347947940,1736235043354,-2170.95434459,0.000191,2]
[347947951,1736235771519,400.0,0.00013973,2]
[347947962,1736236158097,-300.0,0.0001622,2]
[347947963,1736236158119,-235.8469744,0.00016384,2]
[347947966,1736236158855,-106.37971996,0.00016384,2]
[347947967,1736236158877,-438.631639,0.0001704,2]
[347947968,1736236158899,-1000.0,0.00017057,2]
[347947969,1736236158922,-484.61508885,0.000179,2]
[347947970,1736236158945,-300.0,0.00017935,2]
[347947971,1736236158967,-24900.0,0.00017936,2]
[347947972,1736236158988,-430.030099,0.00018,2]
[347947973,1736236159009,-430.030099,0.00018,2]
[347947974,1736236159031,-430.030099,0.00018,2]
[347947975,1736236164011,248.6118211,0.00017248,2]
[347947976,1736236164354,2143.67143409,0.00017248,2]
[347947979,1736236198386,-291.75834332,0.00017076,2]
[347947980,1736236198408,-22464.57022259,0.00017248,2]
[347948031,1736236232559,-291.75834332,0.00017248,2]
[347948033,1736236232568,-681.963,0.00018116,2]
[347948035,1736236232577,-188.95286415,0.00018201,2]
[347948037,1736236232587,-300.0,0.00018209,2]
[347948039,1736236232597,-183.29420423,0.00018209,2]
[347948041,1736236232606,-500.0,0.00018209,2]
[347948043,1736236232615,-500.0,0.00018209,2]
[347948045,1736236232625,-716.5319988,0.00018209,2]
[347948047,1736236232634,-500.0,0.00018209,2]
[347948049,1736236232644,-500.0,0.00018209,2]
[347948051,1736236232653,-500.0,0.00018209,2]
[347948053,1736236232666,-716.5319988,0.00018209,2]
[347948055,1736236232677,-500.0,0.00018209,2]
[347948058,1736236232687,-500.0,0.00018209,2]
[347948059,1736236232696,-716.5319988,0.00018209,2]
[347948061,1736236232706,-500.0,0.00018209,2]
[347948063,1736236232715,-500.0,0.00018209,2]
[347948065,1736236232725,-281.53735091,0.00018209,2]
[347948068,1736236232734,-500.0,0.00018209,2]
[347948070,1736236232744,-716.5319988,0.00018209,2]
[347948072,1736236232753,-758.465,0.0001822,2]
[347948074,1736236232763,-214.6648391,0.00018301,2]
[347948076,1736236232772,-154.108157,0.00018301,2]
[347948077,1736236232782,-153.7491537,0.00018301,2]
[347948079,1736236232792,-153.0,0.00018301,2]
[347948082,1736236232801,-153.7491537,0.00018301,2]
[347948084,1736236232811,-214.6648391,0.00018301,2]
[347948086,1736236232820,-153.0,0.00018301,2]
[347948087,1736236232830,-153.0,0.00018301,2]
[347948089,1736236232839,-214.6648391,0.00018301,2]
[347948091,1736236232849,-153.0,0.00018301,2]
[347948093,1736236232858,-153.7491537,0.00018301,2]
[347948095,1736236232868,-214.6648391,0.00018301,2]
[347948098,1736236232878,-153.0,0.00018301,2]
[347948100,1736236232887,-384.7855031,0.00018301,2]
[347948102,1736236232898,-153.0,0.00018301,2]
[347948103,1736236232907,-314.3333495,0.00018301,2]
[347948105,1736236232917,-214.6648391,0.00018301,2]
[347948108,1736236232927,-307.3333384,0.00018301,2]
[347948109,1736236232937,-214.6648391,0.00018301,2]
[347948112,1736236232948,-188.95286415,0.00018328,2]
[347948113,1736236232957,-188.95286415,0.00018455,2]
[347948115,1736236232967,-153.0,0.00018478,2]
[347948118,1736236232977,-153.41,0.00018512,2]
[347948119,1736236232987,-188.95286415,0.00018582,2]
[347948121,1736236232996,-154.13,0.000186,2]
[347948123,1736236233006,-213.956775,0.000186,2]
[347948125,1736236233015,-1675.90877681,0.00018709,2]
[347948127,1736236233025,-188.95286415,0.00018709,2]
[347948129,1736236233036,-1570.38802562,0.00018711,2]
[347948131,1736236233046,-1261.01842176,0.00018786,2]
[347948133,1736236233057,-151.0,0.000188,2]
[347948135,1736236233067,-151.0,0.000188,2]
[347948137,1736236233077,-151.0,0.000188,2]
[347948139,1736236233088,-151.0,0.000188,2]
[347948141,1736236233098,-151.0,0.000188,2]
[347948143,1736236233109,-151.0,0.000188,2]
[347948146,1736236233119,-151.0,0.000188,2]
[347948147,1736236233129,-166.91521765,0.00018808,2]
[347948149,1736236233140,-500.0,0.00018808,2]
[347948152,1736236233150,-156.04172896,0.00018808,2]
[347948154,1736236233160,-483.74036376,0.00018808,2]
[347948156,1736236233169,-2768.72617478,0.00018809,2]
[347948158,1736236233179,-21005.35700197,0.00018809,2]
[347948160,1736236233193,-1384.01350934,0.00018809,2]
[347948542,1736236238730,-500.0,0.00018209,2]
[347948543,1736236238740,-500.0,0.00018209,2]
[347948544,1736236238750,-500.0,0.00018209,2]
[347948545,1736236238759,-716.5319988,0.00018209,2]
[347948546,1736236238768,-500.0,0.00018209,2]
[347948547,1736236238778,-716.5319988,0.00018209,2]
[347948548,1736236238787,-500.0,0.00018209,2]
[347948549,1736236238796,-500.0,0.00018209,2]
[347948550,1736236238806,-500.0,0.00018209,2]
[347948551,1736236238815,-716.5319988,0.00018209,2]
[347948552,1736236238825,-500.0,0.00018209,2]
[347948553,1736236238835,-500.0,0.00018209,2]
[347948554,1736236238844,-500.0,0.00018209,2]
[347948555,1736236238854,-716.5319988,0.00018209,2]
[347948556,1736236238863,-500.0,0.00018209,2]
[347948557,1736236238873,-500.0,0.00018209,2]
[347948558,1736236238883,-500.0,0.00018209,2]
[347948559,1736236238894,-716.5319988,0.00018209,2]
[347948560,1736236238906,-500.0,0.00018209,2]
[347948561,1736236238915,-500.0,0.00018209,2]
[347948562,1736236238924,-716.5319988,0.00018209,2]
[347948563,1736236238934,-500.0,0.00018209,2]
[347948564,1736236238943,-500.0,0.00018209,2]
[347948565,1736236238953,-500.0,0.00018209,2]
[347948566,1736236238963,-716.5319988,0.00018209,2]
[347948567,1736236238973,-500.0,0.00018209,2]
[347948568,1736236238983,-500.0,0.00018209,2]
[347948569,1736236238993,-716.5319988,0.00018209,2]
[347948570,1736236239003,-500.0,0.00018209,2]
[347948571,1736236239012,-500.0,0.00018209,2]
[347948572,1736236239022,-716.5319988,0.00018209,2]
[347948573,1736236239031,-500.0,0.00018209,2]
[347948574,1736236239041,-500.0,0.00018209,2]
[347948575,1736236239050,-716.5319988,0.00018209,2]
[347948576,1736236239059,-500.0,0.00018209,2]
[347948577,1736236239070,-500.0,0.00018209,2]
[347948578,1736236239079,-500.0,0.00018209,2]
[347948579,1736236239088,-716.5319988,0.00018209,2]
[347948580,1736236239098,-500.0,0.00018209,2]
[347948581,1736236239107,-500.0,0.00018209,2]
[347948582,1736236239117,-500.0,0.00018209,2]
[347948583,1736236239127,-500.0,0.00018209,2]
[347948584,1736236239137,-716.5319988,0.00018209,2]
[347948585,1736236239147,-500.0,0.00018209,2]
[347948586,1736236239156,-254.54714516,0.00018209,2]
[347948587,1736236239166,-716.5319988,0.00018209,2]
[347948588,1736236239175,-500.0,0.00018209,2]
[347948589,1736236239185,-500.0,0.00018209,2]
[347948590,1736236239196,-716.5319988,0.00018209,2]
[347948591,1736236239205,-500.0,0.00018209,2]
[347948592,1736236239214,-500.0,0.00018209,2]
[347948593,1736236239224,-716.5319988,0.00018209,2]
[347948594,1736236239233,-500.0,0.00018209,2]
[347948595,1736236239242,-500.0,0.00018209,2]
[347948596,1736236239252,-500.0,0.00018209,2]
[347948597,1736236239262,-500.0,0.00018209,2]
[347948598,1736236239271,-500.0,0.00018209,2]
[347948599,1736236239281,-500.0,0.00018209,2]
[347948600,1736236239290,-716.5319988,0.00018209,2]
[347948601,1736236239299,-500.0,0.00018209,2]
[347948602,1736236239309,-500.0,0.00018209,2]
[347948603,1736236239319,-500.0,0.00018209,2]
[347948604,1736236239328,-716.5319988,0.00018209,2]
[347948605,1736236239338,-500.0,0.00018209,2]
[347948606,1736236239347,-500.0,0.00018209,2]
[347948607,1736236239357,-716.5319988,0.00018209,2]
[347948608,1736236239367,-500.0,0.00018209,2]
[347948609,1736236239378,-500.0,0.00018209,2]
[347948610,1736236239388,-716.5319988,0.00018209,2]
[347948611,1736236239398,-273.19321057,0.00018209,2]
[347948612,1736236239408,-500.0,0.00018209,2]
[347948613,1736236239418,-500.0,0.00018209,2]
[347948614,1736236239428,-716.5319988,0.00018209,2]
[347948615,1736236239438,-500.0,0.00018209,2]
[347948616,1736236239448,-716.5319988,0.00018209,2]
[347948617,1736236239458,-500.0,0.00018209,2]
[347948618,1736236239468,-500.0,0.00018209,2]
[347948619,1736236239478,-716.5319988,0.00018209,2]
[347948620,1736236239488,-500.0,0.00018209,2]
[347948621,1736236239498,-716.5319988,0.00018209,2]
[347948622,1736236239509,-716.5319988,0.00018209,2]
[347948623,1736236239519,-500.0,0.00018209,2]
[347948624,1736236239529,-716.5319988,0.00018209,2]
[347948625,1736236239539,-716.5319988,0.00018209,2]
[347948626,1736236239548,-716.5319988,0.00018209,2]
[347948627,1736236239557,-716.5319988,0.00018209,2]
[347948628,1736236239567,-716.5319988,0.00018209,2]
[347948629,1736236239576,-716.5319988,0.00018209,2]
[347948630,1736236239586,-716.5319988,0.00018209,2]
[347948631,1736236239595,-716.5319988,0.00018209,2]
[347948632,1736236239605,-716.5319988,0.00018209,2]
[347948633,1736236239615,-716.5319988,0.00018209,2]
[347948634,1736236239624,-716.5319988,0.00018209,2]
[347948635,1736236239633,-716.5319988,0.00018209,2]
[347948637,1736236239643,-716.5319988,0.00018209,2]
[347948638,1736236239652,-716.5319988,0.00018209,2]
[347948639,1736236239665,-6702.30637739,0.00018809,2]
[347948640,1736236239675,-8253.59916882,0.00018809,2]
[347948646,1736236240478,-331.40099454,0.00018809,2]
[347948651,1736236243495,-5459.4269755,0.00018809,2]
[347948656,1736236418997,-151.35534379,0.00018026,2]
[347948657,1736236419019,-744.353,0.0001822,2]
[347948658,1736236419039,-265.80723891,0.00018621,2]
[347948659,1736236419060,-196.20320568,0.00018736,2]
[347948660,1736236419080,-300.0,0.00018799,2]
[347948661,1736236419101,-171.0,0.000188,2]
[347948662,1736236419126,-171.0,0.000188,2]
[347948663,1736236419146,-159.0,0.000188,2]
[347948664,1736236419167,-152.0,0.000188,2]
[347948665,1736236419193,-152.0,0.000188,2]
[347948666,1736236419214,-152.0,0.000188,2]
[347948667,1736236419234,-152.0,0.000188,2]
[347948668,1736236419255,-152.0,0.000188,2]
[347948669,1736236419274,-152.0,0.000188,2]
[347948670,1736236419294,-152.0,0.000188,2]
[347948671,1736236419316,-152.0,0.000188,2]
[347948672,1736236419336,-152.0,0.000188,2]
[347948673,1736236419356,-152.0,0.000188,2]
[347948674,1736236419376,-152.0,0.000188,2]
[347948675,1736236419396,-152.0,0.000188,2]
[347948676,1736236419417,-152.0,0.000188,2]
[347948677,1736236419441,-219.17,0.000188,2]
[347948678,1736236419465,-500.0,0.00018808,2]
[347948679,1736236419489,-500.0,0.00018808,2]
[347948680,1736236419514,-500.0,0.00018808,2]
[347948681,1736236419537,-500.0,0.00018808,2]
[347948682,1736236419562,-500.0,0.00018808,2]
[347948683,1736236419585,-500.0,0.00018808,2]
[347948684,1736236419608,-500.0,0.00018808,2]
[347948685,1736236419632,-500.0,0.00018808,2]
[347948686,1736236419654,-500.0,0.00018808,2]
[347948687,1736236419677,-500.0,0.00018808,2]
[347948688,1736236419700,-500.0,0.00018808,2]
[347948689,1736236419723,-500.0,0.00018808,2]
[347948690,1736236419745,-500.0,0.00018808,2]
[347948691,1736236419768,-500.0,0.00018808,2]
[347948692,1736236419791,-500.0,0.00018808,2]
[347948693,1736236419813,-577.31932106,0.00018808,2]
[347948694,1736236419839,-500.0,0.00018808,2]
[347948695,1736236419860,-275.45471452,0.00018808,2]
[347948696,1736236419884,-500.0,0.00018808,2]
[347948697,1736236419907,-500.0,0.00018808,2]
[347948698,1736236419931,-500.0,0.00018808,2]
[347948699,1736236419952,-500.0,0.00018808,2]
[347948700,1736236419975,-500.0,0.00018808,2]
[347948701,1736236419998,-500.0,0.00018808,2]
[347948702,1736236420020,-500.0,0.00018808,2]
[347948703,1736236420043,-500.0,0.00018808,2]
[347948704,1736236420066,-500.0,0.00018808,2]
[347948705,1736236420088,-500.0,0.00018808,2]
[347948706,1736236420110,-500.0,0.00018808,2]
[347948707,1736236420132,-500.0,0.00018808,2]
[347948708,1736236420154,-500.0,0.00018808,2]
[347948709,1736236420177,-500.0,0.00018808,2]
[347948710,1736236420199,-500.0,0.00018808,2]
[347948711,1736236420221,-500.0,0.00018808,2]
[347948712,1736236420242,-500.0,0.00018808,2]
[347948713,1736236420264,-500.0,0.00018808,2]
[347948714,1736236420288,-500.0,0.00018808,2]
[347948715,1736236420309,-500.0,0.00018808,2]
[347948716,1736236420331,-500.0,0.00018808,2]
[347948717,1736236420354,-500.0,0.00018808,2]
[347948718,1736236420377,-500.0,0.00018808,2]
[347948719,1736236420400,-500.0,0.00018808,2]
[347948720,1736236420421,-500.0,0.00018808,2]
[347948721,1736236420449,-500.0,0.00018808,2]
[347948722,1736236420473,-500.0,0.00018808,2]
[347948723,1736236420496,-500.0,0.00018808,2]
[347948724,1736236420519,-500.0,0.00018808,2]
[347948725,1736236420542,-500.0,0.00018808,2]
[347948726,1736236420565,-500.0,0.00018808,2]
[347948727,1736236420588,-500.0,0.00018808,2]
[347948728,1736236420610,-500.0,0.00018808,2]
[347948729,1736236420633,-500.0,0.00018808,2]
[347948730,1736236420656,-500.0,0.00018808,2]
[347948731,1736236420678,-500.0,0.00018808,2]
[347948732,1736236420699,-500.0,0.00018808,2]
[347948733,1736236420721,-500.0,0.00018808,2]
[347948734,1736236420743,-500.0,0.00018808,2]
[347948735,1736236420766,-481.202429,0.00018808,2]
[347948736,1736236420789,-500.0,0.00018808,2]
[347948737,1736236420808,-152.0,0.00018808,2]
[347948738,1736236420831,-518.74898785,0.00018808,2]
[347948739,1736236420859,-518.74898785,0.00018808,2]
[347948740,1736236420882,-518.74898785,0.00018808,2]
[347948741,1736236420904,-518.74898785,0.00018808,2]
[347948742,1736236420928,-518.74898785,0.00018808,2]
[347948743,1736236420950,-518.74898785,0.00018808,2]
[347948744,1736236420973,-518.74898785,0.00018808,2]
[347948745,1736236420995,-518.74898785,0.00018808,2]
[347948746,1736236421017,-518.74898785,0.00018808,2]
[347948747,1736236421040,-518.74898785,0.00018808,2]
[347948748,1736236421168,-518.74898785,0.00018808,2]
[347948749,1736236421215,-518.74898785,0.00018808,2]
[347948750,1736236421238,-518.74898785,0.00018808,2]
[347948751,1736236421265,-518.74898785,0.00018808,2]
[347948752,1736236421287,-518.74898785,0.00018808,2]
[347948753,1736236421310,-518.74898785,0.00018808,2]
[347948754,1736236421333,-518.74898785,0.00018808,2]
[347948755,1736236421355,-518.74898785,0.00018808,2]
[347948756,1736236421377,-518.74898785,0.00018808,2]
[347948757,1736236421398,-518.74898785,0.00018808,2]
[347948758,1736236421420,-518.74898785,0.00018808,2]
[347948759,1736236421447,-518.74898785,0.00018808,2]
[347948760,1736236421470,-518.74898785,0.00018808,2]
[347948761,1736236421494,-518.74898785,0.00018808,2]
[347948762,1736236421517,-518.74898785,0.00018808,2]
[347948763,1736236421541,-518.74898785,0.00018808,2]
[347948764,1736236421564,-518.74898785,0.00018808,2]
[347948765,1736236421586,-518.74898785,0.00018808,2]
[347948766,1736236421609,-518.74898785,0.00018808,2]
[347948767,1736236421631,-518.74898785,0.00018808,2]
[347948768,1736236421653,-518.74898785,0.00018808,2]
[347948769,1736236421675,-518.74898785,0.00018808,2]
[347948770,1736236421698,-518.74898785,0.00018808,2]
[347948771,1736236421720,-518.74898785,0.00018808,2]
[347948772,1736236421742,-195.31641942,0.00018808,2]
[347948773,1736236421763,-1384.36308739,0.00018809,2]
[347948774,1736236421786,-14545.83844435,0.00018809,2]
[347948775,1736236421808,-114308.15120898,0.00018809,2]
[347948776,1736236436172,500000.0,0.00015,2]
[347948777,1736236688011,400.0,0.00013973,2]
[347948784,1736236831721,160.0,0.00023928,120]
[347948785,1736236835030,-4603.29005449,0.00016928,2]
[347948786,1736236835052,-1332.30616632,0.00017099,2]
[347948787,1736236835073,-161.53836296,0.00017522,2]
[347948788,1736236835097,-531.1139463,0.00017622,2]
[347948789,1736236835120,-250.0,0.00017847,2]
[347948790,1736236835140,-456.4956367,0.00017981,2]
[347948794,1736237126221,2275.36,0.00025,120]
[347949160,1736237440449,-413.004,0.00016723,2]
[347949162,1736237440459,-723.8193786,0.00016892,2]
[347949164,1736237440469,-300.0,0.00017061,2]
[347949166,1736237440478,-4883.27502371,0.00017062,2]
[347950187,1736237589481,400.0,0.00013973,2]
[347950192,1736237764768,500.0,0.00015001,2]
[347950193,1736237786074,183.4875025,0.00015001,2]
[347950196,1736238029202,-500.0,0.00015122,2]
[347950197,1736238029229,-500.0,0.00015917,2]
[347950198,1736238029256,-887.0594786,0.00015953,2]
[347950199,1736238029283,-619.621148,0.00016029,2]
[347950200,1736238029310,-500.0,0.00016755,2]
[347950201,1736238029336,-154.1189007,0.00016953,2]
[347950202,1736238029363,-152.0,0.00017048,2]
[347950203,1736238029392,-300.0,0.00017049,2]
[347950204,1736238029418,-188072.4009454,0.00017049,2]
[347950205,1736238029431,-500.0,0.00017049,2]
[347950206,1736238029453,-500.0,0.00017049,2]
[347950207,1736238029464,-887.0594786,0.00017049,2]
[347950208,1736238029479,-619.621148,0.00017049,2]
[347950209,1736238029496,-500.0,0.00017049,2]
[347950210,1736238029511,-154.1189007,0.00017049,2]
[347950211,1736238029526,-152.0,0.00017049,2]
[347950212,1736238029537,-300.0,0.00017049,2]
[347950213,1736238029553,-79172.7995273,0.00017049,2]
[347950214,1736238029562,-692.18154369,0.0001705,2]
[347950215,1736238029571,-7272.91922218,0.0001705,2]
[347950216,1736238029580,-500.0,0.00017051,2]
[347950217,1736238029590,-292.99705362,0.00017051,2]
[347950218,1736238029599,-500.0,0.00017051,2]
[347950219,1736238029608,-500.0,0.00017051,2]
[347950220,1736238029622,-252.82830161,0.00017051,2]
[347950221,1736238029631,-500.0,0.00017051,2]
[347950222,1736238029640,-500.0,0.00017051,2]
[347950223,1736238029651,-500.0,0.00017051,2]
[347950224,1736238029660,-500.0,0.00017051,2]
[347950225,1736238029668,-500.0,0.00017051,2]
[347950226,1736238029677,-500.0,0.00017051,2]
[347950227,1736238029687,-500.0,0.00017051,2]
[347950228,1736238029696,-500.0,0.00017051,2]
[347950229,1736238029705,-500.0,0.00017051,2]
[347950230,1736238029714,-500.0,0.00017051,2]
[347950231,1736238029723,-500.0,0.00017051,2]
[347950232,1736238029732,-500.0,0.00017051,2]
[347950233,1736238029741,-500.0,0.00017051,2]
[347950234,1736238029750,-500.0,0.00017051,2]
[347950235,1736238029759,-457.35340679,0.00017051,2]
[347950236,1736238029768,-500.0,0.00017051,2]
[347950237,1736238029777,-500.0,0.00017051,2]
[347950238,1736238029787,-582.24758986,0.00017051,2]
[347950239,1736238029796,-500.0,0.00017051,2]
[347950240,1736238029804,-500.0,0.00017051,2]
[347950241,1736238029813,-500.0,0.00017051,2]
[347950242,1736238029823,-500.0,0.00017051,2]
[347950243,1736238029832,-500.0,0.00017051,2]
[347950244,1736238029841,-500.0,0.00017051,2]
[347950245,1736238029850,-500.0,0.00017051,2]
[347950246,1736238029859,-500.0,0.00017051,2]
[347950247,1736238029869,-500.0,0.00017051,2]
[347950248,1736238029878,-500.0,0.00017051,2]
[347950249,1736238029888,-500.0,0.00017051,2]
[347950250,1736238029897,-500.0,0.00017051,2]
[347950251,1736238029906,-500.0,0.00017051,2]
[347950252,1736238029915,-500.0,0.00017051,2]
[347950253,1736238029924,-500.0,0.00017051,2]
[347950254,1736238029933,-500.0,0.00017051,2]
[347950255,1736238029942,-500.0,0.00017051,2]
[347950256,1736238029951,-500.0,0.00017051,2]
[347950257,1736238029961,-20016.72497629,0.00017062,2]
[347950258,1736238029970,-502.52201029,0.00017073,2]
[347950259,1736238029979,-500.0,0.00017073,2]
[347950260,1736238029988,-3432.2881621,0.00017209,2]
[347950261,1736238029997,-154.11890068,0.00017392,2]
[347950262,1736238030006,-1000.0,0.00017621,2]
[347950263,1736238030015,-500.0,0.00017637,2]
[347950264,1736238030024,-161.947578,0.00017801,2]
[347950265,1736238030033,-161.947578,0.00017806,2]
[347950266,1736238030042,-161.947578,0.00017811,2]
[347950267,1736238030051,-161.947578,0.00017816,2]
[347950268,1736238030060,-161.947578,0.00017821,2]
[347950269,1736238030069,-161.947578,0.00017826,2]
[347950270,1736238030078,-161.947578,0.00017831,2]
[347950271,1736238030088,-154.11890068,0.00017831,2]
[347950272,1736238030098,-161.947578,0.00017836,2]
[347950273,1736238030107,-161.947578,0.00017841,2]
[347950274,1736238030118,-161.947578,0.00017846,2]
[347950275,1736238030128,-161.947578,0.00017851,2]
[347950276,1736238030137,-161.947578,0.00017855,2]
[347950277,1736238030147,-161.947578,0.0001786,2]
[347950278,1736238030156,-161.947578,0.00017865,2]
[347950279,1736238030165,-161.947578,0.0001787,2]
[347950280,1736238030174,-161.947578,0.00017875,2]
[347950281,1736238030183,-161.947578,0.0001788,2]
[347950282,1736238030192,-161.947578,0.00017885,2]
[347950283,1736238030201,-161.947578,0.0001789,2]
[347950284,1736238030210,-4042.03855314,0.00018,2]
[347950285,1736238030219,-4042.03855291,0.00018,2]
[347950286,1736238030228,-4042.03855291,0.00018,2]